Cogmind - Beta 11.1 @@@ ROGUE MODE // 2022.04.26 @ 15:08:53 Player: FrigidRock Result: Destroyed by S-10 Pest with Light Assault Rifle Performance ------------- Evolutions (0) 0 Regions Visited (1) 200 Robots Destroyed (16) 80 Value Destroyed (416) 416 Prototype IDs (0) 0 Alien Tech Used (0) 0 Bonus (0) 0 TOTAL SCORE: 696 Bonus ------- None Cogmind --------- Core Integrity 0/250 Matter 255/300 Energy 144/160 System Corruption 0% Temperature Cool (72) Movement Walking (120) Location -10/Materials Parts ------- > --- POWER (1) -------- Light Nuclear Core > --- PROPULSION (2) --- Aluminum Leg Aluminum Leg > --- UTILITY (2) ------ Medium Storage Unit Signal Interpreter > --- WEAPON (2) ------- Small Laser Small Laser > --- INVENTORY (10) --- Light Ion Engine Light Ion Engine Aluminum Leg Aluminum Leg Heat Sink High-capacity Matter Pod (0) Small Laser Peak State ------------ > --- POWER ------------ Ion Engine > --- PROPULSION ------- Light Treads Light Treads > --- UTILITY ---------- Small Storage Unit Improved Terrain Scanner > --- WEAPON ----------- Assault Rifle Assault Rifle > --- INVENTORY -------- Ion Engine Assault Rifle [Rating: 9] Favorites ----------- Power Ion Engine Engine Ion Engine Power Core Light Nuclear Core Propulsion Light Treads Treads Light Treads Leg Aluminum Leg Utility Signal Interpreter Device Improved Terrain Scanner Storage Small Storage Unit Processor Signal Interpreter Weapon Assault Rifle Energy Gun Small Laser Ballistic Gun Assault Rifle Build | -11 -10 ------- Run | Scr Mat Slots Evolved . | . . Power . | . . Propulsion . | . . Utility . | . . Weapon . | . . Parts Attached 25 | 7 18 Power 3 | 1 2 Engine 2 | 1 1 Core 1 | . 1 Reactor . | . . Propulsion 10 | 2 8 Treads 6 | 2 4 Leg 4 | . 4 Wheel . | . . Hover . | . . Flight . | . . Utility 5 | 2 3 Device 1 | 1 . Storage 3 | 1 2 Processor 1 | . 1 Hackware . | . . Protection . | . . Artifact . | . . Weapon 7 | 2 5 Energy Gun 3 | . 3 Energy Cannon . | . . Ballistic Gun 4 | 2 2 Ballistic Cannon . | . . Launcher . | . . Special Weapon . | . . Impact Weapon . | . . Slashing Weapon . | . . Piercing Weapon . | . . Special Melee Weapon . | . . Unidentified Prototypes . | . . Parts Lost 11 | . 11 Power 2 | . 2 Propulsion 3 | . 3 Utility 1 | . 1 Weapon 5 | . 5 Highest Loss Streak 7 | . 7 To Critical Strikes . | . . Average Slot Usage (%) 89 | . 89 Engine 10 | . 10 Core 3 | . 3 Treads 14 | . 14 Leg 11 | . 11 Device 1 | . 1 Storage 12 | . 12 Processor 10 | . 10 Energy Gun 4 | . 4 Ballistic Gun 20 | . 20 Naked Turns . | . . Heaviest Build 29 | 15 29 Greatest Support 40 | 40 40 Greatest Overweight (x) 1 | . 1 Average Overweight (x) . | . . Largest Inventory Capacity 15 | 8 15 Average Capacity 9 | 7 10 Most Carried 8 | 2 8 Average Carried 3 | 1 3 Final Capacity 10 | 8 10 Final Carried 7 | 2 7 Class Distribution -------------------- 82% | Mutant 17% | Scavenger-Mutant Dominant Class ---------------- Mutant | -10/Materials Resources | -11 -10 ----------- Run | Scr Mat Matter Collected 623 | 150 473 Remotely . | . . Salvage Created 497 | 13 484 Parts 29 | 4 25 Haulers Intercepted . | . . Recyclers Shooed . | . . Parts Field Recycled . | . . Retrieved Matter . | . . Parts Self-Destructed . | . . Prevented . | . . Kills | -11 -10 ------- Run | Scr Mat Combat Hostiles Destroyed 14 | . 14 Guns 14 | . 14 Classes Destroyed 4 | 1 3 Tunneler 1 | 1 . Watcher 1 | . 1 Swarmer 4 | . 4 Grunt 10 | . 10 Best Kill Streak 6 | 1 6 Combat Bots Only 6 | . 6 Max Kills in Single Turn 2 | 1 2 Gunslinging 1 | . 1 Exploded . | . . Melee . | . . Uniques/NPCs Destroyed . | . . Combat | -11 -10 -------- Run | Scr Mat Damage Taken 1504 | . 1504 Core 258 | . 258 Absorbed by Shields . | . . Core Remaining (%) 100 | 100 . Volleys Fired 69 | 1 68 Largest 2 | 2 2 Hottest 90 | 40 90 Shots Fired 132 | 2 130 Gun 132 | 2 130 Cannon . | . . Launcher . | . . Special . | . . Kinetic 112 | 2 110 Thermal 20 | . 20 Explosive . | . . Electromagnetic . | . . Robot Hit Streak 9 | 1 9 Robot Miss Streak 6 | . 6 Penetration Max . | . . Secondary Targets 2 | . 2 Max Gunslinging Chain 1 | . 1 Shots Hit Robots 63 | 1 62 Core Hits 28 | 1 27 Critical Kills 1 | . 1 Critical Parts Destroyed . | . . Critical Strikes 1 | . 1 Destroy 1 | . 1 Melee Attacks . | . . Impact . | . . Slashing . | . . Piercing . | . . Sneak Attacks . | . . Combat Hostiles . | . . Follow-up Attacks . | . . Damage Inflicted 854 | 12 842 Guns 848 | 12 836 Cannons . | . . Explosions . | . . Melee . | . . Ramming 6 | . 6 Kinetic 709 | 12 697 Thermal 139 | . 139 Explosive . | . . Electromagnetic . | . . Impact . | . . Slashing . | . . Piercing . | . . Highest Corruption . | . . Average Corruption . | . . Corruption Purged . | . . Corruption Blocked . | . . Overload Shots . | . . Overflow Damage . | . . Projectiles . | . . Explosions . | . . Melee . | . . Knockbacks . | . . Impact . | . . Kinetic . | . . Secondary . | . . Self-Inflicted Damage . | . . Shots . | . . Rammed 1 | . 1 Targets Rammed 2 | . 2 Kicked 1 | . 1 Crushed . | . . Highest Temperature 129 | . 129 Average Temperature 30 | . 30 Received Heat Transfer 597 | . 597 Siege Activations . | . . Robots Corrupted . | . . Combat Hostiles . | . . Parts Fried . | . . Impact Corruptions . | . . Robots Melted . | . . Combat Hostiles . | . . Parts Melted 1 | . 1 Heat Transferred 348 | . 348 Parts Sabotaged . | . . Parts Stolen . | . . Parts Stripped . | . . Power Chain Reactions . | . . Missiles Intercepted . | . . Alert | -11 -10 ------- Run | Scr Mat Peak Influence 201 | 5 201 Initial 3 | . 3 Average 87 | 1 97 Maximum Alert Level 1 | . 1 Low Security (%) 87 | 100 85 Level 1 12 | . 14 Level 2 . | . . Level 3 . | . . Level 4 . | . . Level 5 . | . . High Security . | . . Max Security . | . . Squads Dispatched 3 | . 3 Investigation 2 | . 2 Extermination . | . . Reinforcement 1 | . 1 Assault . | . . Garrison . | . . Intercept . | . . Searches Triggered . | . . Construction Impeded . | . . Haulers Reinforced . | . . Active Scanning Responses . | . . Cargo Convoy Interrupts . | . . Stealth | -11 -10 --------- Run | Scr Mat Distress Signals . | . . Communications Jammed . | . . Distress Signals . | . . Times Spotted 20 | . 20 Peak Tracking Total 6 | . 6 Tactical Retreats 1 | . 1 Traps | -11 -10 ------- Run | Scr Mat Traps Triggered 1 | . 1 Indirectly . | . . Trap Hack Attempts . | . . Triggered . | . . Disarmed . | . . Reprogrammed . | . . Reused . | . . Traps Extracted . | . . Installed . | . . Triggered . | . . Machines | -11 -10 ---------- Run | Scr Mat Machines Disabled . | . . Max in Single Turn . | . . Machines Sabotaged . | . . Garrisons Compromised . | . . Overloaded Fab Kills . | . . Hacking | -11 -10 --------- Run | Scr Mat Machines Accessed 1 | . 1 Terminals . | . . Fabricators . | . . Repair Stations . | . . Recycling Units 1 | . 1 Scanalyzers . | . . Garrison Access . | . . Total Hacks 4 | . 4 Successful 4 | . 4 Failed . | . . Catastrophic . | . . Database Lockouts . | . . Manual 3 | . 3 Terminals . | . . Fabricators . | . . Repair Stations . | . . Recycling Units 4 | . 4 Scanalyzers . | . . Garrison Access . | . . Terminal Hacks . | . . Fabricator Hacks . | . . Repair Station Hacks . | . . Recycling Unit Hacks 1 | . 1 Retrieve Components 1 | . 1 Scanalyzer . | . . Garrison Access Hacks . | . . Unauthorized Hacks 3 | . 3 Terminals . | . . Fabricators . | . . Repair Stations . | . . Recycling Units 3 | . 3 Reject 1 | . 1 Mask 1 | . 1 Tunnel 1 | . 1 Scanalyzers . | . . Garrison Access . | . . Data Cores Recovered . | . . Used . | . . Hacking Detections 1 | . 1 Full Trace Events . | . . Feedback Events . | . . Feedback Blocked . | . . Robot Schematics Acquired . | . . Robots Built . | . . Authchips . | . . Time . | . . Total Robot Build Rating . | . . Part Schematics Acquired . | . . Parts Built . | . . Authchips . | . . Time . | . . Total Part Build Rating . | . . Parts Repaired . | . . Time . | . . Parts Recycled . | . . Recycled Matter . | . . Retrieved Matter . | . . Retrieved Components 6 | . 6 Parts Scanalyzed . | . . Part Schematics Acquired . | . . Parts Damaged . | . . Bothacking | -11 -10 ------------ Run | Scr Mat Used RIF Installer . | . . Robots Hacked . | . . Non-combat . | . . Combat . | . . Robot Hacks Applied . | . . Relay Couplers Released . | . . Fabnet Peak Effective % . | . . Robots Rewired . | . . Allies Hacked . | . . Hacks Repelled . | . . Allies | -11 -10 -------- Run | Scr Mat Total Allies . | . . Largest Group . | . . Highest-Rated Group . | . . Highest-Rated Ally . | . . Total Orders . | . . Ally Attacks . | . . Total Damage . | . . Kills . | . . Allies Corrupted . | . . Allies Melted . | . . Intel | -11 -10 ------- Run | Scr Mat Robot Analysis Total . | . . Derelict Logs Recovered . | . . Drone Launches . | . . Drone Recoveries . | . . Exploration | -11 -10 ------------- Run | Scr Mat Turns Passed 939 | 98 841 Spaces Moved 484 | 54 430 Core 9 | 3 6 Treads 225 | 51 174 Legs 250 | . 250 Wheels . | . . Hover . | . . Flight . | . . Fastest Speed 50 | 50 50 Average Speed 137 | 153 135 Slowest Speed 190 | 160 190 Overloaded Moves . | . . Propulsion Burnouts . | . . Robots Hopped . | . . Cave-ins Triggered . | . . Exploration Rate (%) 24 | 5 43 Regions Visited 1 Branch Regions . Pre-discovered Areas 1 | . 1 Known Exits Taken . | . . Unknown Exits Taken 1 | 1 . Scrap Searched . | . . Spaces Dug . | . . Terrain Destroyed . | . . Melee . | . . Projectile . | . . AOE . | . . Terrain Rammed . | . . Walls Destroyed . | . . Machines Disabled . | . . Actions | -11 -10 --------- Run | Scr Mat Total 625 | 63 562 Wait 26 | . 26 Move 483 | 53 430 Hop . | . . Pick Up 13 | 2 11 Fast Attach 19 | 7 12 Attach 4 | . 4 Detach . | . . Swap 2 | . 2 Drop 7 | . 7 Fire 69 | 1 68 Melee . | . . Ram . | . . Kick 1 | . 1 Crush 1 | . 1 Escape Stasis . | . . Rewire . | . . Trap . | . . Miscellaneous . | . . Route ------- -11/Scrapyard -10/Materials (discovered 1 exit: *Mat) History --------- Turn | Location | Event 2 | -11/Scrapyard | Discovered new exit (range 16) 99 | -11/Scrapyard | Entered Materials 260 | -10/Materials | Lost 3 parts (1p1u1w) 301 | -10/Materials | Build established: Mutant 336 | -10/Materials | Discovered new exit (range 15) 352 | -10/Materials | Identified exit to Materials 659 | -10/Materials | Core integrity fell below 50% 735 | -10/Materials | Core integrity fell below 20% 781 | -10/Materials | Lost 7 parts (1p3n3w) 940 | -10/Materials | Destroyed by S-10 Pest with Light Assault Rifle Last Messages --------------- 00739_ G-34 Mercenary destroyed. 00739_ Switching to secondary target: G-34 Mercenary. 00740_ Acquired 32 matter. 00750_ Med. Laser destroyed. 00751_ Sml. Laser melted. 00751_ G-34 Mercenary destroyed. 00756_ Acquired Lgt. Nuclear Core. 00758_ Acquired Aluminum Leg. 00765_ Acquired Lrg. Storage Unit. 00770_ Acquired Lgt. Ion Engine. 00773_ Dropped Lrg. Storage Unit. 00813_ Acquired Med. Storage Unit. 00854_ Acquired Aluminum Leg. 00855_ Acquired 48 matter. 00856_ Acquired 43 matter. 00858_ Acquired 30 matter. 00880_ Acquired Aluminum Leg. 00887_ Connecting with Terminal... 00892_ Acquired Sml. Laser. 00934_ S-10 Pest destroyed. Map ----- +----------------------------------------------------+ | # """ """ ### #?????????????????????????? | | ## # #?# #?????????????????????????? | | # # #?# #?????????????????????????? | | # # #?# #?????????????????????????? | | + #####+#######?# #?????????????????????????? | | # #??????# #?????????????????????????? | | # #??????# #?????????????????????????? | | "# ######## #?"?? #??????????????????? | | "# # # #??"" #??????????????????? | | "# # """ # # """ #??????????????????? | | # # "R" / + #??????????????????? | | ## # " " # # #??????????????????? | | ## = = # # #?? #??????????????????? | | ## [ =+ # #????###??????????????????? | | ?# = ######## #???##########????????????? | | #################### #???# #????????????? | | # * # #???# """ #????????????? | | # """ =!+ #???# """ #????????????? | | " !!!# """ = =# #???# """ #????????????? | | " !!!# """ "Y"!#! #???# #????????????? | | "??!! # """%# #???# #????????????? | | ??? ############## #???# " " #????????????? | | ####+############### #???# "T" #????????????? | | #???# """ ########?????? | | s ########+##### #?????? | | ####+##### ######## %=@ ##### """ #?????? | | # # ##?#?#?# < s * + """ #?????? | | # # #??????# ####### ##### """ #?????? | | # # #???############## #???# #?????? | | # +^ #???# ## ##??# ! #?????? | | # /// ## #???# # #######+###?????? | | # // ## ##### + #?????? | | # // ## + """ """ # #?????? | | # ######## """ """ # ###########?????? | | #! #??????# """ """ ######???????????????? | | ##########??????# #????????????????????? | | ????????????????#############????????????????????? | | ?????????????????????????????????????????????????? | | | | | | | | | | | | | | | | | | | | | | | | | +----------------------------------------------------+ Best States ------------- Heat Dissipation 25 Energy Generation 14 Energy Capacity 250 Matter Stores 265 Matter Capacity 300 Sight Range 16 Terrain Scan Range 16 Terrain Scan Density 10 Evasion (%) 55 Recoil Reduction 2 Item Schematics ----------------- None Robot Schematics ------------------ None Fabricated ------------ Nothing Alien Tech Used ----------------- None Achievements -------------- True Hacker Challenges ------------ None Game ------ Seed UltimateHackingCanceller Manual? 0 Play Time 00:08:36 Cumulative 58.0 hours Start 2022.04.26 @ 13:41:09 End 2022.04.26 @ 15:08:53 Sessions 1 Manual Loads 0 Difficulty Rogue Special Mode None Game No. 34 Rogue 4 Adventurer 30 Explorer 0 Win Type - Total 1 Types 1/0/0/0/0/0/0/0/0 Lore% 40 Gallery% 50 Achievement% 40 Wizard Run 0 Options --------- ASCII 0 Keyboard 0 Movement Numpad Keybinds 0 Fullscreen 1 Font 24/Terminus Map View 76x50 Tactical HUD 1 Map Filters NONE Filters NONE Steam 1 RUN: 5643e336-6769-4fbb-be8c-091d8ab2217a